bitfinex/quotes_ETHUSD_20260209
["timestamp","ask_amount","ask_price","bid_price","bid_amount"]
[1770653577859,1.21826421,2052.1,2051.1,3.87]
[1770653578024,1.04496731,2052.0,2051.1,3.87]
[1770653578218,1.21844234,2051.8,2051.2,1.21879875]
[1770653578423,4.87258938,2052.3,2051.2,1.21879875]
[1770653578737,2.37581437,2052.2,2051.2,5.08879875]
[1770653578949,2.37581437,2052.1,2051.2,5.08879875]
[1770653579143,1.04514775,2052.0,2051.2,5.08879875]
[1770653579858,1.04514775,2051.9,2051.2,5.08879875]
[1770653580034,1.04514775,2051.8,2051.2,5.08879875]
[1770653580233,1.21832358,2052.0,2051.2,5.08879875]
[1770653580432,1.21814549,2052.3,2051.3,3.405]
[1770653580621,1.04537434,2052.2,2051.3,3.405]
[1770653580822,1.04537434,2052.1,2051.3,3.405]
[1770653581061,1.21814549,2052.3,2051.0,4.87666551]
[1770653581062,1.33066662,2051.9,2051.0,0.001]
[1770653581361,2.54881211,2052.3,2051.2,1.21877028]
[1770653581531,1.0452493,2052.2,2051.2,1.21877028]
[1770653581732,2.37591592,2052.1,2051.2,1.21879764]
[1770653581919,1.0452493,2052.0,2051.2,1.21979764]
[1770653582124,1.0452493,2052.0,2051.2,0.001]
[1770653582433,1.21838296,2051.9,2051.2,0.001]
[1770653582634,1.0452493,2051.8,2051.2,0.001]
[1770653582852,1.21838296,2051.9,2051.2,0.001]
[1770653583036,1.04519401,2051.8,2051.2,0.001]
[1770653583238,1.21838296,2051.9,2051.2,0.001]
[1770653583423,1.04513066,2051.8,2051.2,0.001]
[1770653583740,1.21838296,2051.9,2051.2,0.001]
[1770653583939,1.04513397,2051.8,2051.2,0.001]
[1770653584141,1.21838296,2051.9,2051.2,0.001]
[1770653584342,1.04521933,2051.8,2051.2,0.001]
[1770653584642,1.21814549,2052.3,2051.2,3.406]
[1770653584833,1.04513964,2052.2,2051.2,3.406]
[1770653585027,1.33066662,2052.0,2051.2,3.406]
[1770653585356,1.33066662,2051.8,2051.2,0.001]
[1770653585556,2.37580626,2051.7,2051.2,0.001]
[1770653585869,1.04513964,2051.6,2051.2,0.001]
[1770653587259,2.26376016,2051.5,2051.2,0.001]
[1770653587573,1.04513964,2051.4,2051.2,0.001]
[1770653589362,2.26387897,2051.3,2051.2,0.001]
[1770653589867,1.04513964,2051.3,2051.2,0.001]
[1770653590088,1.21866024,2051.5,2051.2,0.001]
[1770653590278,1.04741345,2051.4,2051.2,0.001]
[1770653590570,1.04741345,2051.3,2051.2,0.001]
[1770653591062,1.21866024,2051.5,2051.2,0.001]
[1770653591368,1.21873933,2051.3,2051.0,0.001]
[1770653591563,1.04825577,2051.2,2051.0,0.001]
[1770653591862,1.21873933,2051.3,2050.6,0.001]
[1770653591863,1.04825577,2051.1,2050.6,0.001]
[1770653592066,1.21873933,2051.3,2050.6,0.001]
[1770653592067,1.04825577,2051.0,2050.6,0.001]
[1770653592364,1.04825577,2050.9,2050.6,0.001]
[1770653592662,1.04825577,2050.8,2050.6,0.001]
[1770653592862,1.04825577,2050.7,2050.6,0.001]
[1770653593748,2.26735168,2050.7,2050.6,0.001]
[1770653596459,2.26735168,2050.7,2050.4,0.001]
[1770653596662,2.26735168,2050.7,2050.2,3.871]
[1770653596663,1.04825577,2050.6,2050.2,3.871]
[1770653596890,1.04825577,2050.5,2050.2,0.001]
[1770653597089,1.04825577,2050.4,2050.2,0.001]
[1770653597295,1.21909591,2050.7,2050.2,0.001]
[1770653597453,2.26752941,2050.6,2050.2,0.001]
[1770653597653,1.04833341,2050.5,2050.2,0.001]
[1770653597898,3.406,2051.0,2050.2,0.001]
[1770653598174,4.87504435,2051.3,2050.2,3.407]
[1770653598379,6.20852498,2051.3,2050.2,7.277]
[1770653598779,6.20852498,2051.3,2050.2,3.871]
[1770653598780,1.33348063,2051.2,2050.2,3.871]
[1770653599587,2.5523388,2051.1,2050.3,1.21933375]
[1770653599887,2.5523388,2051.1,2050.2,5.09035196]
[1770653600088,2.5523388,2051.1,2050.2,1.22035196]
[1770653600665,1.33348063,2051.0,2050.2,0.001]
[1770653601471,1.33348063,2051.0,2050.2,1.22037175]
[1770653601659,1.21897703,2050.9,2050.2,1.22037175]
[1770653602794,1.21897703,2050.9,2050.2,0.001]
[1770653602795,2.55245766,2050.9,2050.2,0.001]
[1770653603393,1.33348063,2050.8,2050.0,0.001]
[1770653603596,1.33348063,2050.6,2049.3,1.21992875]
[1770653603916,1.33348063,2050.5,2049.3,1.21992875]
[1770653604407,1.33348063,2050.5,2049.0,1.1052346]
[1770653604408,1.33348063,2050.2,2049.0,1.22010434]
[1770653604607,1.33348063,2050.2,2048.9,4.88054172]
[1770653604608,1.33348063,2050.0,2048.7,3.407]
[1770653604811,1.33348063,2050.0,2048.1,4.88236041]
[1770653604812,1.33348063,2049.8,2048.3,4.88197357]
[1770653604974,1.33348063,2049.8,2048.5,1.22035797]
[1770653605395,1.40658005,2049.8,2048.5,1.22040457]
[1770653605812,1.33348063,2049.5,2048.1,4.88256673]
[1770653605969,1.40658005,2049.5,2048.1,4.88256673]
[1770653606171,1.21969068,2049.7,2048.2,1.11620328]
[1770653606397,2.55317131,2049.7,2048.3,1.11620328]
[1770653607107,2.55317131,2049.7,2048.4,1.11979324]
[1770653607305,1.33348063,2049.6,2048.2,0.1024]
[1770653607480,1.33348063,2049.6,2048.3,3.407]
[1770653607815,1.2198097,2049.5,2048.4,1.22046475]
[1770653608476,1.2198097,2049.5,2048.3,8.28885901]
[1770653608477,1.33348063,2049.4,2048.7,0.001]
[1770653610210,1.21992875,2049.3,2048.7,0.001]
[1770653610508,2.55340938,2049.3,2048.7,0.001]
[1770653611590,1.33348063,2049.3,2048.7,0.001]
[1770653611918,1.33348063,2050.0,2048.7,1.13802166]
[1770653612127,1.21943009,2050.2,2048.7,1.13802166]
[1770653612297,1.21943009,2050.2,2048.8,2.35724813]
[1770653612493,2.55291072,2050.2,2048.8,2.35724813]
[1770653612713,1.33348063,2050.1,2048.8,2.35724813]
[1770653614630,2.55294632,2050.1,2048.8,2.35724813]
[1770653614795,1.33348063,2050.0,2048.8,1.22022647]
[1770653615979,1.33348063,2050.0,2048.7,0.001]
[1770653616220,1.33348063,2049.8,2048.8,1.22021988]
[1770653616424,1.21969068,2049.7,2048.7,0.001]
[1770653616632,2.55317131,2049.7,2048.7,0.001]
[1770653616925,1.33348063,2049.6,2048.7,0.001]
[1770653617287,4.87876274,2049.8,2048.7,0.001]
[1770653617288,1.21967416,2049.8,2048.7,0.001]
[1770653617494,2.55309468,2049.9,2048.7,0.001]
[1770653618193,1.21961405,2049.9,2048.7,1.15744672]
[1770653618392,1.33348063,2050.0,2048.8,1.22022647]
[1770653620999,1.21957168,2049.9,2048.7,1.16668014]
[1770653621314,1.21957168,2049.9,2048.9,0.001]
[1770653621515,0.002,2049.8,2048.9,0.001]
[1770653622905,1.33548063,2049.8,2048.9,0.001]
[1770653624227,0.002,2049.8,2048.9,0.001]
[1770653624593,1.33548063,2049.8,2048.9,0.001]
[1770653625102,1.33348063,2049.6,2048.9,0.001]
[1770653625995,1.22167779,2049.8,2048.9,0.001]
[1770653628440,0.002,2049.8,2048.9,0.001]
[1770653629404,1.47264643,2049.8,2048.9,0.001]
[1770653629941,0.002,2049.8,2048.9,0.001]
[1770653634950,0.002,2049.8,2048.9,1.20835204]
[1770653635357,0.002,2049.8,2049.1,1.20735204]
[1770653635534,0.002,2049.8,2049.2,3.409]
[1770653636353,0.002,2049.8,2049.2,4.6188808]
[1770653636738,0.002,2050.0,2049.3,1.2123772]
[1770653637252,1.21916444,2050.6,2049.3,1.2103772]
[1770653637554,6.34895549,2050.8,2049.5,1.2103772]
[1770653637555,1.47264643,2050.8,2049.5,1.2103772]
[1770653637769,1.47264643,2050.8,2049.7,1.21287923]
[1770653637770,0.002,2050.8,2049.7,1.21287923]
[1770653638128,2.69168645,2050.8,2049.5,0.1024]
[1770653638330,1.47064643,2050.7,2049.5,0.1024]
[1770653639442,2.68975587,2050.7,2049.6,1.21975019]
[1770653639645,1.47064643,2050.7,2049.6,1.21975019]
[1770653640025,0.002,2050.8,2049.7,1.21774513]
[1770653640446,0.002,2050.8,2049.8,1.21774513]
[1770653640641,0.002,2050.8,2049.9,3.409]
[1770653641267,0.002,2050.8,2050.0,1.22012853]
[1770653641466,0.002,2050.8,2050.1,2.44193283]
[1770653641629,1.47264643,2051.0,2050.1,1.2194527]
[1770653642361,1.47264643,2051.0,2050.0,1.21948535]
[1770653642525,1.47264643,2051.0,2050.0,1.21950186]
[1770653642961,1.47264643,2051.0,2049.7,4.62765971]
[1770653643164,1.54574585,2051.0,2049.7,4.62763507]
[1770653643364,1.47064643,2050.8,2049.7,4.62763507]
[1770653644557,1.22096286,2051.0,2049.7,5.8570321]
[1770653645058,0.002,2051.0,2049.8,0.1024]
[1770653645258,2.69157022,2051.0,2049.7,5.8570321]
[1770653645702,1.47264643,2051.0,2049.7,5.8570321]
[1770653646373,0.002,2051.0,2049.8,1.23163845]
[1770653646572,0.002,2051.0,2050.0,1.23385192]
[1770653646964,0.002,2051.0,2049.7,4.62763507]
[1770653646965,1.47264643,2051.0,2049.7,4.62763507]
[1770653647198,2.69156666,2051.0,2049.8,0.3359703]
[1770653647500,0.002,2051.0,2050.0,1.23604043]
[1770653647793,1.22093563,2051.0,2049.9,1.21957168]
[1770653648000,1.47064643,2050.9,2049.9,1.21957168]
[1770653648699,0.002,2050.8,2049.9,1.21957168]
[1770653649215,1.47264643,2050.8,2049.9,1.21957168]
[1770653649512,1.47264643,2050.8,2049.8,4.87828674]
[1770653649513,1.21909591,2050.7,2049.8,4.87828674]
[1770653650383,1.47064643,2050.6,2049.8,4.87828674]
[1770653650595,1.47064643,2050.6,2049.8,1.21963118]
[1770653651300,1.47064643,2050.6,2049.7,8.2865493]
[1770653651301,1.47064643,2050.6,2049.7,1.21964618]
[1770653651467,1.47064643,2050.4,2049.7,1.21964618]
[1770653653503,1.47064643,2050.6,2049.7,1.21964618]
[1770653653714,4.8782597,2050.8,2049.7,1.21964618]
[1770653653715,1.22108147,2050.8,2049.7,1.21964618]
[1770653654573,0.002,2050.8,2049.7,1.21964618]
[1770653654772,1.22103743,2050.8,2049.7,1.21964618]
[1770653655070,1.47064643,2050.9,2049.7,1.21964618]
[1770653655071,0.002,2051.0,2050.0,1.25070158]
[1770653655268,0.002,2051.0,2050.1,3.407]
[1770653655491,0.002,2051.0,2050.2,1.21939322]
[1770653658614,1.38217147,2051.0,2050.2,1.21939322]
[1770653659594,2.5991485,2050.9,2050.2,1.21939322]
[1770653660602,1.38017147,2050.9,2050.2,1.21939322]
[1770653660805,0.002,2050.8,2050.2,1.21939322]
[1770653663209,0.002,2051.0,2050.2,1.21939322]
[1770653664409,1.50058589,2051.0,2050.2,1.21939322]
[1770653668789,1.50058589,2051.4,2050.4,1.28344885]
[1770653669008,0.002,2051.4,2050.5,1.28344885]
[1770653669193,0.002,2051.4,2050.6,3.407]
[1770653670381,0.002,2051.4,2050.6,4.69207254]
[1770653670794,0.002,2051.4,2050.7,1.21909591]
[1770653671312,0.002,2051.4,2050.7,2.50580131]
[1770653671696,0.002,2051.6,2050.8,1.28828883]
[1770653672414,0.002,2051.9,2050.8,1.28828883]
[1770653672588,0.002,2051.9,2050.9,1.28984759]
[1770653672785,0.002,2051.9,2051.0,1.2189176]
[1770653672982,0.002,2051.9,2051.1,3.407]
[1770653673310,0.002,2051.9,2051.1,4.69684759]
[1770653674208,0.002,2051.7,2051.1,4.69684759]
[1770653674408,0.002,2051.9,2051.1,4.69684759]
[1770653674409,0.002,2052.5,2051.5,1.29294103]
[1770653674711,1.50058589,2052.5,2051.7,1.21850173]
[1770653675220,1.49858589,2052.4,2051.7,1.21850173]
[1770653675587,0.002,2052.5,2051.7,1.21850173]
[1770653675906,1.49858589,2052.4,2051.4,1.21863826]
[1770653676107,1.49858589,2052.4,2051.5,3.406]
[1770653676495,1.49858589,2052.4,2051.6,1.21855562]
[1770653676691,1.21814549,2052.3,2051.5,4.62457693]
[1770653676916,1.49858589,2052.2,2051.5,4.62457693]
[1770653677729,1.49858589,2052.2,2051.5,3.406]
[1770653678030,1.49858589,2052.2,2051.2,1.21878771]
[1770653678185,1.49858589,2052.2,2051.1,4.62481092]
[1770653678588,1.49858589,2052.2,2051.1,3.406]
[1770653678812,1.49858589,2052.0,2051.1,3.406]
[1770653679492,1.49858589,2052.0,2050.9,1.21896747]
[1770653680006,1.49858589,2052.0,2050.8,1.2189906]
[1770653680399,1.49858589,2052.0,2050.9,1.21897144]
[1770653681118,1.49858589,2052.3,2050.9,0.1024]
[1770653681312,1.49858589,2052.3,2050.9,1.30174318]
[1770653682810,1.49858589,2052.3,2051.0,1.30456833]
[1770653683118,1.49858589,2052.3,2051.1,5.9294265]
[1770653683119,2.71673951,2052.3,2051.1,5.9294265]
[1770653683323,2.71673951,2052.3,2051.1,6.4294265]
[1770653683993,1.49858589,2052.3,2051.1,16.71762724]
[1770653684201,2.71674038,2052.3,2051.1,16.71762724]
[1770653684410,1.49858589,2052.2,2051.1,5.12485817]
[1770653684604,1.49858589,2052.2,2051.1,4.62485817]
[1770653685012,1.21826421,2052.1,2051.1,4.62485817]
[1770653685214,1.49858589,2052.2,2051.1,5.9321703]
[1770653686204,1.49858589,2052.2,2051.3,0.001]
[1770653686536,1.50058589,2052.2,2051.3,0.001]
[1770653687119,2.71880892,2052.2,2051.3,0.001]
[1770653687533,1.42919767,2052.1,2051.3,0.001]
[1770653689240,1.42919767,2052.1,2051.5,1.21862052]
[1770653690904,1.42919767,2052.0,2051.3,0.001]
[1770653691109,1.42919767,2051.8,2051.3,0.001]
[1770653691507,1.21830378,2052.1,2051.3,0.001]
[1770653691713,1.42919767,2052.0,2051.3,0.001]
[1770653692214,2.6494079,2052.2,2051.3,0.001]
[1770653692709,1.42919767,2052.1,2051.3,0.001]
[1770653693248,1.42919767,2051.9,2051.3,1.21973933]
[1770653693431,1.42919767,2051.9,2051.3,0.001]
[1770653695136,2.64944418,2052.2,2051.3,0.001]
[1770653695311,0.002,2052.2,2051.3,1.322309]
[1770653696325,0.002,2052.2,2051.4,3.87]
[1770653696525,0.002,2052.2,2051.5,3.87]
[1770653696725,0.002,2052.2,2051.6,3.405]
[1770653697021,0.002,2052.2,2051.6,7.275]
[1770653697624,0.002,2052.2,2051.7,1.21850173]
[1770653697822,0.002,2052.2,2051.6,12.14900692]
[1770653697823,1.43119767,2052.2,2051.6,3.87]
[1770653699347,1.43119767,2052.2,2051.6,5.08855747]
[1770653699523,2.64942342,2052.2,2051.6,5.08855747]
[1770653699924,1.43119767,2052.0,2051.6,3.87]
[1770653700446,0.002,2052.5,2051.6,1.21852321]
[1770653700749,1.22004357,2052.5,2051.6,1.21852321]
[1770653700955,2.64924124,2052.5,2051.6,1.21852321]
[1770653701129,0.002,2052.5,2051.7,11.1292724]
[1770653701450,0.002,2052.5,2051.8,3.405]
[1770653701646,0.002,2052.5,2051.9,1.21838296]
[1770653703463,1.43119767,2052.5,2051.9,1.21838296]
[1770653703658,1.42919767,2052.4,2051.9,1.21838296]
[1770653704346,0.002,2052.5,2051.9,1.21838296]
[1770653706341,0.002,2052.8,2052.1,1.3192527]
[1770653706550,0.002,2052.8,2052.1,5.1892527]
[1770653707622,0.002,2052.8,2052.2,1.21820485]
[1770653707824,0.002,2052.8,2052.3,3.404]
[1770653708755,1.42919767,2053.3,2052.3,3.404]
[1770653708957,1.42919767,2053.2,2052.3,3.404]
[1770653709763,2.64681408,2053.2,2052.4,1.21808614]
[1770653709947,2.64681408,2053.2,2051.6,11.1292724]
[1770653709948,1.42919767,2053.1,2051.6,11.1292724]
[1770653710254,1.42919767,2053.1,2052.3,1.21812558]
[1770653710440,1.42919767,2053.1,2052.1,1.21824047]
[1770653710760,1.42919767,2053.1,2051.9,1.21834349]
[1770653711335,1.42919767,2053.1,2051.7,4.62247017]
[1770653711529,1.42919767,2053.1,2051.9,1.21835935]
[1770653711730,1.42919767,2053.1,2051.8,1.21844234]
[1770653711731,1.42919767,2052.9,2051.8,1.21844234]
[1770653711961,1.42919767,2052.9,2051.7,3.404]
[1770653712567,1.43119767,2052.9,2051.7,3.404]
[1770653712857,1.43119767,2052.9,2052.0,0.001]
[1770653712858,1.42919767,2052.6,2052.0,0.001]
[1770653713160,1.42919767,2052.4,2051.7,1.21846923]
[1770653713365,1.04769844,2052.3,2051.7,1.21846923]
[1770653713534,1.04769844,2052.2,2051.7,1.21846923]
[1770653713734,2.64730681,2052.4,2051.5,0.001]
[1770653713935,1.04752839,2052.3,2051.5,0.001]
[1770653714138,1.04752839,2052.2,2051.5,0.001]
[1770653714467,2.64730681,2052.4,2051.5,0.001]
[1770653714666,1.42919767,2052.2,2051.5,0.001]
[1770653714876,1.21810914,2052.4,2051.5,0.001]
[1770653714877,2.47674063,2052.1,2051.5,0.001]
[1770653715171,2.64730681,2052.4,2051.5,0.001]
[1770653715331,1.04756828,2052.3,2051.5,0.001]
[1770653715670,1.04756828,2052.2,2051.5,0.001]
[1770653715875,1.21817983,2052.3,2051.5,0.001]
[1770653716075,1.04755878,2052.2,2051.5,0.001]
[1770653716370,1.21817983,2052.3,2051.5,0.001]
[1770653716565,1.0475529,2052.2,2051.5,0.001]
[1770653716860,2.6740857,2052.3,2051.5,0.001]
[1770653717038,1.45590587,2052.8,2051.6,1.30603745]
[1770653717243,0.002,2053.4,2052.4,1.30603745]
[1770653717442,0.002,2054.0,2052.4,1.30603745]
[1770653717443,0.002,2054.0,2052.8,0.1024]
[1770653717652,1.2191612,2054.0,2052.8,0.1024]
[1770653717875,1.45790587,2054.0,2052.9,1.21778946]
[1770653719891,1.21719655,2053.9,2052.9,1.21778946]
[1770653720197,2.67508996,2054.0,2052.9,1.21778946]
[1770653721379,1.45790587,2054.0,2052.9,1.21778946]
[1770653721591,2.67505267,2054.0,2052.9,1.21778946]
[1770653722868,2.67505267,2054.0,2053.0,3.403]
[1770653723063,0.002,2054.1,2053.1,1.59916618]
[1770653723263,0.002,2054.3,2053.1,2.23437687]
[1770653723264,1.21897077,2054.3,2053.1,2.23437687]
[1770653723462,1.44666659,2054.2,2053.2,3.403]
[1770653724408,2.66371741,2054.2,2053.3,1.21755223]
[1770653724605,4.86985994,2054.3,2053.3,1.21755223]
[1770653724606,0.002,2054.3,2053.5,1.49676618]
[1770653725498,1.21896214,2054.3,2053.4,11.1292724]
[1770653725666,1.21896214,2054.3,2053.3,1.21755223]
[1770653725868,0.002,2053.8,2053.3,1.21755223]
[1770653726171,1.21896214,2054.3,2053.3,1.21755223]
[1770653726375,0.002,2054.0,2053.3,1.21755223]
[1770653726773,0.002,2054.3,2053.3,2.71431841]
[1770653726965,0.002,2054.3,2053.4,1.49676618]
[1770653727166,0.002,2054.3,2053.5,0.5]
[1770653727599,0.002,2054.3,2053.5,1.99676618]
[1770653728300,6.3155783,2054.7,2053.6,1.49676618]
[1770653728301,1.21872271,2054.7,2053.6,1.49676618]
[1770653728596,0.002,2054.7,2053.7,1.21731508]
[1770653728769,0.002,2054.7,2053.8,3.402]
[1770653730624,0.002,2054.7,2053.9,1.21719655]
[1770653730937,0.002,2054.9,2054.0,1.49676618]
[1770653731211,1.44866659,2054.9,2053.9,1.21719655]
[1770653731506,1.44866659,2054.9,2053.8,4.61921994]
[1770653732187,1.44866659,2054.9,2053.7,3.402]
[1770653732188,1.44666659,2054.7,2053.7,3.402]
[1770653732590,1.44666659,2054.5,2053.7,3.402]
[1770653732790,1.44666659,2054.3,2053.7,3.402]
[1770653733309,1.21678185,2054.6,2052.8,1.21781043]
[1770653733310,1.44666659,2054.1,2052.8,1.21781043]
[1770653733483,1.44666659,2053.9,2052.7,8.27351482]
[1770653733816,1.44666659,2053.9,2052.9,1.21778468]
[1770653733987,1.44666659,2053.9,2052.9,4.87099426]
[1770653734182,1.44666659,2053.9,2053.0,1.21770364]
[1770653734480,1.44666659,2053.9,2052.9,1.21775644]
[1770653734719,1.44666659,2053.7,2052.5,1.21797502]
[1770653734891,2.25724089,2053.8,2052.5,1.21801928]
[1770653734892,1.44666659,2053.5,2052.5,1.21801928]
[1770653735094,1.44666659,2053.5,2052.6,1.21796668]
[1770653735288,1.44666659,2053.5,2052.5,4.87207285]
[1770653735289,1.44666659,2053.5,2052.5,1.21798476]
[1770653735510,1.44666659,2053.3,2052.3,1.2191202]
[1770653735808,1.44666659,2053.3,2052.4,1.21805654]
[1770653736014,1.44666659,2053.3,2052.5,1.21801857]
[1770653736181,1.44666659,2053.7,2052.7,1.21790317]
[1770653736383,1.04025719,2053.6,2052.7,1.21790317]
[1770653736618,1.44666659,2053.7,2052.7,1.21790317]
[1770653736801,1.44666659,2053.7,2052.3,0.001]
[1770653736802,2.25766078,2053.6,2052.3,1.21914549]
[1770653736992,1.21742079,2053.6,2052.4,1.49676618]
[1770653737197,1.21742079,2053.6,2052.9,0.5]
[1770653737514,1.21735723,2053.7,2052.9,0.5]
[1770653738224,1.21735723,2053.7,2052.9,0.501]
[1770653738613,2.66402382,2053.7,2052.9,0.501]
[1770653738812,2.66402382,2053.7,2052.9,1.7187639]
[1770653739011,2.66402382,2053.7,2052.9,1.2187639]
[1770653739225,2.66402382,2053.7,2052.9,0.001]
[1770653739527,1.44666659,2053.6,2052.9,0.001]
[1770653739704,1.21735723,2053.7,2052.9,1.21878941]
[1770653740216,0.002,2053.8,2052.9,1.21878941]
[1770653740417,4.61898686,2054.3,2053.0,1.49676618]
[1770653740622,4.61898686,2054.3,2053.0,5.36676618]
[1770653740797,1.44666659,2054.2,2053.1,1.21767083]
[1770653741003,2.48683506,2054.1,2053.1,1.21767083]
[1770653741205,1.44666659,2054.1,2053.1,1.21767083]
[1770653741632,4.61898686,2054.3,2052.9,0.001]
[1770653741633,1.44666659,2053.9,2052.9,0.001]
[1770653741839,1.44666659,2053.7,2052.9,1.21878607]
[1770653742416,1.44666659,2053.7,2052.9,0.001]
[1770653742813,1.21737436,2053.6,2052.9,0.001]
[1770653743022,1.16227436,2053.6,2052.9,0.001]
[1770653743219,1.44666659,2053.4,2052.6,0.001]
[1770653743419,1.44666659,2053.2,2052.6,0.001]
[1770653743734,1.44666659,2053.0,2052.6,0.001]
[1770653743939,1.04217201,2052.9,2052.6,0.001]
[1770653745028,1.21784879,2052.8,2052.6,0.001]
[1770653745439,1.21784879,2052.8,2052.3,0.001]
[1770653745653,1.21784879,2052.8,2052.0,0.001]
[1770653745654,1.57957995,2052.6,2052.0,0.001]
[1770653745942,1.57957995,2052.4,2051.8,0.001]
[1770653746148,1.04329358,2052.3,2051.8,0.001]
[1770653746843,1.04329358,2052.3,2051.5,0.001]
[1770653746844,1.57957995,2052.2,2051.5,0.001]
[1770653747142,1.57957995,2052.0,2051.5,0.001]
[1770653747341,2.26155779,2052.1,2051.2,0.001]
[1770653747342,1.57957995,2051.8,2051.2,0.001]
[1770653747543,1.04329358,2051.7,2051.2,0.001]
[1770653747741,3.403,2051.9,2051.2,0.001]
[1770653747950,1.04253298,2051.8,2051.2,0.001]
[1770653748149,4.98257995,2051.9,2051.2,0.001]
[1770653748355,4.98257995,2051.9,2051.0,0.001]
[1770653748356,2.62051674,2051.8,2051.0,0.001]
[1770653748656,1.57957995,2051.8,2051.0,0.001]
[1770653749320,1.21850173,2051.7,2051.0,0.001]
[1770653749728,1.21826421,2052.1,2051.0,0.001]
[1770653749955,4.62126421,2052.1,2051.0,0.001]
[1770653750155,6.20084416,2052.1,2051.0,0.001]
[1770653751547,4.62126421,2052.1,2051.0,0.001]
[1770653751749,4.62126421,2052.1,2051.5,0.001]
[1770653752260,6.20084416,2052.1,2051.3,0.001]
[1770653752424,1.11034784,2052.0,2050.5,1.21919109]
[1770653752628,1.03724842,2051.9,2050.6,1.21915438]
[1770653753454,1.21844234,2051.8,2050.6,1.71915438]
[1770653753751,1.21844234,2051.8,2050.5,1.21921219]
[1770653753933,1.57957995,2051.7,2050.5,1.21921219]
[1770653754250,1.57957995,2051.7,2050.6,1.2191531]
[1770653754759,2.79802229,2051.8,2050.6,1.2191531]
[1770653755575,2.79802229,2051.8,2050.5,1.21916884]
[1770653755576,1.57957995,2051.7,2050.5,1.21916884]
[1770653756656,1.57957995,2051.7,2050.4,1.22023359]
[1770653756838,1.57957995,2051.7,2050.5,1.21920941]
[1770653757460,1.57957995,2051.5,2050.4,0.001]
[1770653757761,3.405,2051.4,2050.4,0.001]
[1770653759868,1.21873933,2051.3,2050.4,0.001]
[1770653760266,2.79831928,2051.3,2050.4,0.001]
[1770653760473,1.57957995,2051.2,2050.4,0.001]
[1770653761971,2.79843812,2051.1,2050.4,0.001]
[1770653762173,2.61763058,2051.0,2050.1,0.001]
[1770653762372,1.57957995,2050.8,2050.1,0.001]
[1770653762556,1.57957995,2050.7,2050.1,0.001]
[1770653763284,1.57957995,2050.7,2049.9,0.001]
[1770653763471,1.57957995,2050.7,2049.4,1.21982097]
[1770653763472,1.57957995,2050.5,2049.4,1.21982097]
[1770653763648,1.57957995,2050.5,2049.4,1.2198219]
[1770653763849,1.21927428,2050.4,2049.3,0.001]
[1770653764293,1.21909591,2050.7,2050.3,0.001]
[1770653764593,4.62507341,2050.8,2050.3,0.001]
[1770653764883,2.79825987,2051.4,2050.3,0.001]
[1770653765348,1.21867992,2051.4,2050.3,0.001]
[1770653765947,4.8747197,2051.5,2050.3,0.001]
[1770653766153,4.87600313,2051.9,2050.3,0.001]
[1770653766154,1.21854614,2051.7,2050.3,1.53174479]
[1770653767160,1.57957995,2051.6,2050.3,0.001]
[1770653767367,2.61749197,2051.5,2050.3,0.001]
[1770653767685,3.406,2051.4,2050.3,0.001]
[1770653767884,1.21873933,2051.3,2050.3,0.001]
[1770653769271,2.79831928,2051.3,2050.5,0.5]
[1770653769474,2.61902945,2051.2,2050.5,0.5]
[1770653769671,1.21873933,2051.3,2050.3,0.001]
[1770653770177,1.04028287,2051.2,2050.3,0.001]
[1770653770377,1.57957995,2051.2,2050.3,0.001]
[1770653770891,2.61999074,2051.1,2050.3,0.001]
[1770653771182,1.04193584,2051.0,2050.3,0.001]
[1770653771386,1.57957995,2051.1,2050.3,0.001]
[1770653771584,1.21873933,2051.3,2050.3,0.001]
[1770653771766,2.62156223,2051.2,2050.3,0.001]
[1770653771965,1.2189176,2051.0,2050.3,0.001]
[1770653772286,1.04341072,2050.9,2050.3,0.001]
[1770653772486,1.2189176,2051.0,2050.3,0.001]
[1770653772663,1.04350358,2050.9,2050.3,0.001]
[1770653772862,1.2189176,2051.0,2050.3,0.001]
[1770653773073,1.0435038,2050.9,2050.3,0.001]
[1770653773268,1.0435038,2050.8,2050.3,0.001]
[1770653773483,4.87531583,2051.2,2050.3,0.001]
[1770653773758,1.04526961,2051.1,2050.3,0.001]
[1770653773956,1.21877767,2051.3,2050.3,2.75107854]
[1770653774228,1.04513356,2051.2,2050.3,2.75107854]
[1770653774492,3.406,2051.4,2050.5,2.03074479]
[1770653774700,1.04629544,2051.3,2050.6,1.53074479]
[1770653774875,4.87388779,2051.8,2050.6,1.53074479]
[1770653775072,1.04615274,2051.7,2050.6,1.53074479]
[1770653775264,1.04615274,2051.6,2050.6,1.53074479]
[1770653775584,1.04615274,2051.5,2050.6,1.53074479]
[1770653775784,1.04615274,2051.4,2050.6,1.53074479]
[1770653775989,4.87388779,2051.8,2050.6,1.53074479]
[1770653775990,1.04615274,2051.3,2050.6,1.53074479]
[1770653776286,4.87379241,2051.8,2050.7,2.84742281]
[1770653776586,4.62643159,2051.9,2050.8,1.6283269]
[1770653776767,4.62643159,2051.9,2050.7,1.21909591]
[1770653776768,0.002,2051.9,2051.0,1.6283269]
[1770653777169,0.002,2052.1,2051.2,1.6283269]
[1770653777387,0.002,2051.5,2051.2,1.6283269]
[1770653777596,0.002,2052.1,2051.2,1.6283269]
[1770653777766,0.002,2052.1,2051.4,1.6283269]
[1770653777981,0.002,2052.1,2051.5,1.6283269]
[1770653777982,0.002,2051.7,2051.5,1.6283269]
[1770653778298,0.002,2052.1,2051.7,1.57980123]
[1770653778870,0.002,2052.1,2051.6,1.21856112]
[1770653781969,0.002,2052.1,2051.6,1.57980123]
[1770653782200,0.002,2052.1,2051.7,2.79830296]
[1770653782371,0.002,2052.6,2052.0,1.57980123]
[1770653782572,0.002,2053.0,2052.2,1.57980123]
[1770653783505,0.002,2053.5,2052.8,1.57980123]
[1770653783680,0.002,2053.5,2052.7,10.38472033]
[1770653783681,0.002,2053.5,2052.9,4.98580123]
[1770653784300,1.21878185,2054.6,2053.1,1.21767083]